Workbook

Sheet Титул
G1: Министерство образования Ставропольского края | AF1: Утверждаю
AF2: Директор ГБПОУ КРК «Интеграл»
AF4: Ерин В.В.
AF5: Рег.№ 813 от 30.05.2023 года
A9: УЧЕБНЫЙ ПЛАН
A10: программы подготовки специалистов среднего звена
A11: ГОСУДАРСТВЕННОЕ БЮДЖЕТНОЕ ПРОФЕССИОНАЛЬНОЕ ОБРАЗОВАТЕЛЬНОЕ УЧРЕЖДЕНИЕ КУРСАВСКИЙ РЕГИОНАЛЬНЫЙ КОЛЛЕДЖ «ИНТЕГРАЛ»
A12: наименование образовательного учреждения (организации)
A13: по специальности среднего профессионального образования
A14: 38.02.01 | G14: Экономика и бухгалтерский учет (по отраслям)
A15: код | G15: наименование специальности
A16: по программе базовой подготовки
A17: уровень образования | E17: основное общее образование
A19: квалификация: | G19: бухгалтер, специалист по налогообложению
G20: 20 7
G21: 21 7
G22: 22 7
G23: 23 7
G24: 24 7
G25: 25 7
A27: форма обучения | G27: Очная | P27: Срок получения СПО по ППССЗ: | AC27: 3г 10м | AI27: год начала подготовки по УП 2021 | AS27: 2021
A29: профиль получаемого профессионального образования | U29: социально-экономический
U30: при реализации программы среднего общего образования
A32: Приказ об утверждении ФГОС | L32: от | N32: 05.02.2018 | S32: № | U32: 69

Sheet График
A2: 1 Календарный учебный график
A3: Курс | B3: Сентябрь | F3: 29 сен - 5 окт | G3: Октябрь | J3: 27 окт - 2 ноя | K3: Ноябрь | O3: Декабрь | S3: 29 дек - 4 янв | T3: Январь | W3: 26 янв - 1 фев | X3: Февраль | AA3: 23 фев - 1 мар | AB3: Март | AF3: 30 мар - 5 апр | AG3: Апрель | AJ3: 27 апр - 3 май | AK3: Май | AO3: Июнь | AS3: 29 июн - 5 июл | AT3: Июль | AW3: 27 июл -2 авг | AX3: Август
B4: 1 - 7 | C4: 8 - 14 | D4: 15 - 21 | E4: 22 - 28 | G4: 6 - 12 | H4: 13 - 19 | I4: 20 - 26 | K4: 3 - 9 | L4: 10 - 16 | M4: 17 - 23 | N4: 24 - 30 | O4: 1 - 7 | P4: 8 - 14 | Q4: 15 - 21 | R4: 22 - 28 | T4: 5 - 11 | U4: 12 - 18 | V4: 19 - 25 | X4: 2 - 8 | Y4: 9 - 15 | Z4: 16 - 22 | AB4: 2 - 8 | AC4: 9 - 15 | AD4: 16 - 22 | AE4: 23 - 29 | AG4: 6 - 12 | AH4: 13 - 19 | AI4: 20 - 26 | AK4: 4 - 10 | AL4: 11 - 17 | AM4: 18 - 24 | AN4: 25 - 31 | AO4: 1 - 7 | AP4: 8 - 14 | AQ4: 15 - 21 | AR4: 22 - 28 | AT4: 6 - 12 | AU4: 13 - 19 | AV4: 20 - 26 | AX4: 3 - 9 | AY4: 10 - 16 | AZ4: 17 - 23 | BA4: 24 - 31
B5: 1 | C5: 2 | D5: 3 | E5: 4 | F5: 5 | G5: 6 | H5: 7 | I5: 8 | J5: 9 | K5: 10 | L5: 11 | M5: 12 | N5: 13 | O5: 14 | P5: 15 | Q5: 16 | R5: 17 | S5: 18 | T5: 19 | U5: 20 | V5: 21 | W5: 22 | X5: 23 | Y5: 24 | Z5: 25 | AA5: 26 | AB5: 27 | AC5: 28 | AD5: 29 | AE5: 30 | AF5: 31 | AG5: 32 | AH5: 33 | AI5: 34 | AJ5: 35 | AK5: 36 | AL5: 37 | AM5: 38 | AN5: 39 | AO5: 40 | AP5: 41 | AQ5: 42 | AR5: 43 | AS5: 44 | AT5: 45 | AU5: 46 | AV5: 47 | AW5: 48 | AX5: 49 | AY5: 50 | AZ5: 51 | BA5: 52
A7: 0
A10: I
A13: II
A16: III
A19: IV
A22: V
A25: VI
A28: VII
A31: VIII
A34: IX
A37: X
A40: XI
A43: 0 | B43: * | C43: * | D43: * | E43: * | F43: * | G43: * | H43: * | I43: * | J43: * | K43: * | L43: * | M43: * | N43: * | O43: * | P43: * | Q43: * | R43: * | S43: * | T43: * | U43: * | V43: * | W43: * | X43: * | Y43: * | Z43: * | AA43: * | AB43: * | AC43: * | AD43: * | AE43: * | AF43: * | AG43: * | AH43: * | AI43: * | AJ43: * | AK43: * | AL43: * | AM43: * | AN43: * | AO43: * | AP43: * | AQ43: * | AR43: * | AS43: * | AT43: * | AU43: * | AV43: * | AW43: * | AX43: * | AY43: * | AZ43: * | BA43: *
A50: I | S50: = | T50: = | AQ50: :: | AR50: :: | AS50: = | AT50: = | AU50: = | AV50: = | AW50: = | AX50: = | AY50: = | AZ50: = | BA50: =
A57: II | R57: :: | S57: = | T57: = | AO57: 0 | AP57: 8 | AQ57: :: | AR57: :: | AS57: = | AT57: = | AU57: = | AV57: = | AW57: = | AX57: = | AY57: = | AZ57: = | BA57: =
A64: III | R64: :: | S64: = | T64: = | AK64: 0 | AL64: 0 | AM64: 0 | AN64: 0 | AO64: 8 | AP64: 8 | AQ64: :: | AR64: :: | AS64: = | AT64: = | AU64: = | AV64: = | AW64: = | AX64: = | AY64: = | AZ64: = | BA64: =
A71: IV | P71: 0 | Q71: 8 | R71: :: | S71: = | T71: = | AE71: 0 | AF71: 0 | AG71: 8 | AH71: 8 | AI71: :: | AJ71: X | AK71: X | AL71: X | AM71: D | AN71: D | AO71: D | AP71: D | AQ71: III | AR71: III | AS71: * | AT71: * | AU71: * | AV71: * | AW71: * | AX71: * | AY71: * | AZ71: * | BA71: *
A78: V | B78: * | C78: * | D78: * | E78: * | F78: * | G78: * | H78: * | I78: * | J78: * | K78: * | L78: * | M78: * | N78: * | O78: * | P78: * | Q78: * | R78: * | S78: * | T78: * | U78: * | V78: * | W78: * | X78: * | Y78: * | Z78: * | AA78: * | AB78: * | AC78: * | AD78: * | AE78: * | AF78: * | AG78: * | AH78: * | AI78: * | AJ78: * | AK78: * | AL78: * | AM78: * | AN78: * | AO78: * | AP78: * | AQ78: * | AR78: * | AS78: * | AT78: * | AU78: * | AV78: * | AW78: * | AX78: * | AY78: * | AZ78: * | BA78: *
A85: VI | B85: * | C85: * | D85: * | E85: * | F85: * | G85: * | H85: * | I85: * | J85: * | K85: * | L85: * | M85: * | N85: * | O85: * | P85: * | Q85: * | R85: * | S85: * | T85: * | U85: * | V85: * | W85: * | X85: * | Y85: * | Z85: * | AA85: * | AB85: * | AC85: * | AD85: * | AE85: * | AF85: * | AG85: * | AH85: * | AI85: * | AJ85: * | AK85: * | AL85: * | AM85: * | AN85: * | AO85: * | AP85: * | AQ85: * | AR85: * | AS85: * | AT85: * | AU85: * | AV85: * | AW85: * | AX85: * | AY85: * | AZ85: * | BA85: *
A92: VII | B92: * | C92: * | D92: * | E92: * | F92: * | G92: * | H92: * | I92: * | J92: * | K92: * | L92: * | M92: * | N92: * | O92: * | P92: * | Q92: * | R92: * | S92: * | T92: * | U92: * | V92: * | W92: * | X92: * | Y92: * | Z92: * | AA92: * | AB92: * | AC92: * | AD92: * | AE92: * | AF92: * | AG92: * | AH92: * | AI92: * | AJ92: * | AK92: * | AL92: * | AM92: * | AN92: * | AO92: * | AP92: * | AQ92: * | AR92: * | AS92: * | AT92: * | AU92: * | AV92: * | AW92: * | AX92: * | AY92: * | AZ92: * | BA92: *
A99: VIII | B99: * | C99: * | D99: * | E99: * | F99: * | G99: * | H99: * | I99: * | J99: * | K99: * | L99: * | M99: * | N99: * | O99: * | P99: * | Q99: * | R99: * | S99: * | T99: * | U99: * | V99: * | W99: * | X99: * | Y99: * | Z99: * | AA99: * | AB99: * | AC99: * | AD99: * | AE99: * | AF99: * | AG99: * | AH99: * | AI99: * | AJ99: * | AK99: * | AL99: * | AM99: * | AN99: * | AO99: * | AP99: * | AQ99: * | AR99: * | AS99: * | AT99: * | AU99: * | AV99: * | AW99: * | AX99: * | AY99: * | AZ99: * | BA99: *
A106: IX | B106: * | C106: * | D106: * | E106: * | F106: * | G106: * | H106: * | I106: * | J106: * | K106: * | L106: * | M106: * | N106: * | O106: * | P106: * | Q106: * | R106: * | S106: * | T106: * | U106: * | V106: * | W106: * | X106: * | Y106: * | Z106: * | AA106: * | AB106: * | AC106: * | AD106: * | AE106: * | AF106: * | AG106: * | AH106: * | AI106: * | AJ106: * | AK106: * | AL106: * | AM106: * | AN106: * | AO106: * | AP106: * | AQ106: * | AR106: * | AS106: * | AT106: * | AU106: * | AV106: * | AW106: * | AX106: * | AY106: * | AZ106: * | BA106: *
A113: X | B113: * | C113: * | D113: * | E113: * | F113: * | G113: * | H113: * | I113: * | J113: * | K113: * | L113: * | M113: * | N113: * | O113: * | P113: * | Q113: * | R113: * | S113: * | T113: * | U113: * | V113: * | W113: * | X113: * | Y113: * | Z113: * | AA113: * | AB113: * | AC113: * | AD113: * | AE113: * | AF113: * | AG113: * | AH113: * | AI113: * | AJ113: * | AK113: * | AL113: * | AM113: * | AN113: * | AO113: * | AP113: * | AQ113: * | AR113: * | AS113: * | AT113: * | AU113: * | AV113: * | AW113: * | AX113: * | AY113: * | AZ113: * | BA113: *
A120: XI | B120: * | C120: * | D120: * | E120: * | F120: * | G120: * | H120: * | I120: * | J120: * | K120: * | L120: * | M120: * | N120: * | O120: * | P120: * | Q120: * | R120: * | S120: * | T120: * | U120: * | V120: * | W120: * | X120: * | Y120: * | Z120: * | AA120: * | AB120: * | AC120: * | AD120: * | AE120: * | AF120: * | AG120: * | AH120: * | AI120: * | AJ120: * | AK120: * | AL120: * | AM120: * | AN120: * | AO120: * | AP120: * | AQ120: * | AR120: * | AS120: * | AT120: * | AU120: * | AV120: * | AW120: * | AX120: * | AY120: * | AZ120: * | BA120: *
A127: Обозначения: | H127: Обучение по дисциплинам и междисциплинарным курсам | Y127: 0 | Z127: Учебная практика | AR127: D | AS127: Подготовка к государственной итоговой аттестации
G129: :: | H129: Промежуточная аттестация | Y129: 8 | Z129: Производственная практика (по профилю специальности) | AR129: III | AS129: Государственная итоговая аттестация
G131: = | H131: Каникулы | Y131: X | Z131: Производственная практика (преддипломная) | AR131: * | AS131: Неделя отсутствует
A133: 2 Сводные данные по бюджету времени
A135: Курс | B135: Обучение по дисциплинам и междисциплинарным курсам | T135: Промежуточная аттестация | AC135: Практики | AX135: ГИА | BD135: Каникулы | BG135: Всего | BJ135: Студентов | BN135: Групп
AC136: Учебная практика | AJ136: Производственная практика (по профилю специальности) | AQ136: Производственная практика (преддипломная) | AX136: Подго- товка | BA136: Прове- дение
B137: Всего | H137: 1 сем | N137: 2 сем | T137: Всего | W137: 1 сем | Z137: 2 сем | AC137: Всего | AF137: 1 сем | AH137: 2 сем | AJ137: Всего | AM137: 1 сем | AO137: 2 сем | AQ137: Всего | AT137: 1 сем | AV137: 2 сем
B138: нед. | H138: нед. | N138: нед. | T138: нед. | W138: нед. | Z138: нед. | AC138: нед. | AF138: нед. | AH138: нед. | AJ138: нед. | AM138: нед. | AO138: нед. | AQ138: нед. | AT138: нед. | AV138: нед. | AX138: нед. | BA138: нед. | BD138: нед. | BG138: нед.
A139: I | B139: 39 | H139: 17 | N139: 22 | T139: 2 | Z139: 2 | BD139: 11 | BG139: 52
A140: II | B140: 36 | H140: 16 | N140: 20 | T140: 3 | W140: 1 | Z140: 2 | AC140: 1 | AH140: 1 | AJ140: 1 | AO140: 1 | BD140: 11 | BG140: 52
A141: III | B141: 32 | H141: 16 | N141: 16 | T141: 3 | W141: 1 | Z141: 2 | AC141: 4 | AH141: 4 | AJ141: 2 | AO141: 2 | BD141: 11 | BG141: 52
A142: IV | B142: 24 | H142: 14 | N142: 10 | T142: 2 | W142: 1 | Z142: 1 | AC142: 3 | AF142: 1 | AH142: 2 | AJ142: 3 | AM142: 1 | AO142: 2 | AQ142: 3 | AV142: 3 | AX142: 4 | BA142: 2 | BD142: 2 | BG142: 43
A143: V
A144: VI
A145: VII
A146: VIII
A147: IX
A148: X
A149: XI
A150: Всего | B150: 131 | H150: 2292 | N150: 3282 | T150: 10 | AC150: 8 | AJ150: 6 | AQ150: 3 | AX150: 4 | BA150: 2 | BD150: 35 | BG150: 199
A152: Курс | B152: Обучение по дисциплинам и междисциплинарным курсам, в том числе учебная практика | T152: Промежуточная аттестация | AC152: Практики | AQ152: ГИА | AW152: Каникулы | AZ152: Всего | BC152: Студентов | BG152: Групп
AC153: Производственная практика (по профилю специальности) | AJ153: Производственная практика (преддипломная) | AQ153: Подго- товка | AT153: Прове- дение
B154: Всего | H154: 1 сем | N154: 2 сем | T154: Всего | W154: 1 сем | Z154: 2 сем | AC154: Всего | AF154: 1 сем | AH154: 2 сем | AJ154: Всего | AM154: 1 сем | AO154: 2 сем
B155: нед. | E155: час. обяз. уч. занятий | H155: нед. | K155: час. обяз. уч. занятий | N155: нед. | Q155: час. обяз. уч. занятий | T155: нед. | W155: нед. | Z155: нед. | AC155: нед. | AF155: нед. | AH155: нед. | AJ155: нед. | AM155: нед. | AO155: нед. | AQ155: нед. | AT155: нед. | AW155: нед. | AZ155: нед.
A156: I
A157: II
A158: III
A159: IV
A160: V
A161: VI
A162: VII
A163: VIII
A164: IX
A165: X
A166: XI
A167: Всего
A169: Курс | B169: Обучение по циклам и разделу "Физическая культура" | T169: Промежуточная аттестация | AC169: Практики | AQ169: ГИА | AT169: Каникулы | AW169: Всего | AZ169: Студентов | BD169: Групп
AC170: Учебная практика (Производственное обучение) | AJ170: Производственная практика | AQ170: Прове- дение
B171: Всего | H171: 1 сем | N171: 2 сем | T171: Всего | W171: 1 сем | Z171: 2 сем | AC171: Всего | AF171: 1 сем | AH171: 2 сем | AJ171: Всего | AM171: 1 сем | AO171: 2 сем
B172: нед. | E172: час. обяз. уч. зан. | H172: нед. | K172: час. обяз. уч. зан. | N172: нед. | Q172: час. обяз. уч. зан. | T172: нед. | W172: нед. | Z172: нед. | AC172: нед. | AF172: нед. | AH172: нед. | AJ172: нед. | AM172: нед. | AO172: нед. | AQ172: нед. | AT172: нед. | AW172: нед.
A173: I
A174: II
A175: III
A176: IV
A177: V
A178: Всего
A180: Курс | B180: Обучение по циклам и разделу "Физическая культура", в том числе учебная практика | T180: Промежуточная аттестация | AC180: Практики | AJ180: ГИА | AM180: Каникулы | AP180: Всего | AS180: Студентов | AW180: Групп
AC181: Производственная практика | AJ181: Прове- дение
B182: Всего | H182: 1 сем | N182: 2 сем | T182: Всего | W182: 1 сем | Z182: 2 сем | AC182: Всего | AF182: 1 сем | AH182: 2 сем
B183: нед. | E183: час. обяз. уч. зан. | H183: нед. | K183: час. обяз. уч. зан. | N183: нед. | Q183: час. обяз. уч. зан. | T183: нед. | W183: нед. | Z183: нед. | AC183: нед. | AF183: нед. | AH183: нед. | AJ183: нед. | AM183: нед. | AP183: нед.
A184: I
A185: II
A186: III
A187: IV
A188: V
A189: Всего

Sheet План
B1: Индекс | C1: Наименование циклов, разделов, дисциплин, профессиональных модулей, МДК, практик | D1: Формы промежуточной аттестации | I1: Учебная нагрузка обучающихся, ч. | Q1: Распределение по курсам и семестрам
Q2: Курс 1 | AG2: Курс 2 | AW2: Курс 3 | BM2: Курс 4
D3: Экзамены | E3: Зачеты | F3: Диффер. зачеты | G3: Курсовые проекты | H3: Курсовые работы | I3: Максимальная | J3: Самост.(с.р.+и.п.) | K3: Обязательная | Q3: Семестр 1 | Y3: Семестр 2 | AG3: Семестр 3 | AO3: Семестр 4 | AW3: Семестр 5 | BE3: Семестр 6 | BM3: Семестр 7 | BU3: Семестр 8
K4: Всего | L4: в том числе | Q4: 17 нед | Y4: 22 нед | AG4: 16 нед | AO4: 20 (2 ) нед | AW4: 16 нед | BE4: 16 (6 ) нед | BM4: 14 (2 ) нед | BU4: 10 (7 ) нед
L5: Лекции, уроки | M5: Пр. занятия | N5: Лаб. занятия | O5: Курс.работы | P5: Промежут. аттестация | Q5: Максим. | R5: Самост. | S5: Обязательная | T5: в том числе | Y5: Максим. | Z5: Самост. | AA5: Обязательная | AB5: в том числе | AG5: Максим. | AH5: Самост. | AI5: Обязательная | AJ5: в том числе | AO5: Максим. | AP5: Самост. | AQ5: Обязательная | AR5: в том числе | AW5: Максим. | AX5: Самост. | AY5: Обязательная | AZ5: в том числе | BE5: Максим. | BF5: Самост. | BG5: Обязательная | BH5: в том числе | BM5: Максим. | BN5: Самост. | BO5: Обязательная | BP5: в том числе | BU5: Максим. | BV5: Самост. | BW5: Обязательная | BX5: в том числе
T6: Лекции, уроки | U6: Пр.занятия | V6: Лаб. занятия | W6: Курс.работы | X6: Промежут. аттестация | AB6: Лекции, уроки | AC6: Пр.занятия | AD6: Лаб. занятия | AE6: Курс.работы | AF6: Промежут. аттестация | AJ6: Лекции, уроки | AK6: Пр.занятия | AL6: Лаб. занятия | AM6: Курс.работы | AN6: Промежут. аттестация | AR6: Лекции, уроки | AS6: Пр.занятия | AT6: Лаб. занятия | AU6: Курс.работы | AV6: Промежут. аттестация | AZ6: Лекции, уроки | BA6: Пр.занятия | BB6: Лаб. занятия | BC6: Курс.работы | BD6: Промежут. аттестация | BH6: Лекции, уроки | BI6: Пр.занятия | BJ6: Лаб. занятия | BK6: Курс.работы | BL6: Промежут. аттестация | BP6: Лекции, уроки | BQ6: Пр.занятия | BR6: Лаб. занятия | BS6: Курс.работы | BT6: Промежут. аттестация | BX6: Лекции, уроки | BY6: Пр.занятия | BZ6: Лаб. занятия | CA6: Курс.работы | CB6: Промежут. аттестация
B7: 1 | C7: 2 | D7: 3 | E7: 4 | F7: 5 | G7: 6 | H7: 7 | I7: 8 | J7: 9 | K7: 10 | L7: 11 | M7: 12 | N7: 13 | O7: 14 | P7: 15 | Q7: 16 | R7: 17 | S7: 18 | T7: 19 | U7: 20 | V7: 21 | W7: 22 | X7: 23 | Y7: 24 | Z7: 25 | AA7: 26 | AB7: 27 | AC7: 28 | AD7: 29 | AE7: 30 | AF7: 31 | AG7: 32 | AH7: 33 | AI7: 34 | AJ7: 35 | AK7: 36 | AL7: 37 | AM7: 38 | AN7: 39 | AO7: 40 | AP7: 41 | AQ7: 42 | AR7: 43 | AS7: 44 | AT7: 45 | AU7: 46 | AV7: 47 | AW7: 48 | AX7: 49 | AY7: 50 | AZ7: 51 | BA7: 52 | BB7: 53 | BC7: 54 | BD7: 55 | BE7: 56 | BF7: 57 | BG7: 58 | BH7: 59 | BI7: 60 | BJ7: 61 | BK7: 62 | BL7: 63 | BM7: 64 | BN7: 65 | BO7: 66 | BP7: 67 | BQ7: 68 | BR7: 69 | BS7: 70 | BT7: 71 | BU7: 72 | BV7: 73 | BW7: 74 | BX7: 75 | BY7: 76 | BZ7: 77 | CA7: 78 | CB7: 79
A8: 3 | B8: ОП | C8: ОБЩЕОБРАЗОВАТЕЛЬНАЯ ПОДГОТОВКА | D8: 4 | F8: 12 | I8: 1551 | J8: 71 | K8: 1480 | L8: 788 | M8: 646 | P8: 46 | Q8: 567 | R8: 27 | S8: 540 | T8: 288 | U8: 252 | Y8: 778 | Z8: 26 | AA8: 752 | AB8: 391 | AC8: 325 | AF8: 36 | AG8: 166 | AH8: 14 | AI8: 152 | AJ8: 99 | AK8: 49 | AN8: 4 | AO8: 40 | AP8: 4 | AQ8: 36 | AR8: 10 | AS8: 20 | AV8: 6
A9: 11 | B9: СО | C9: Среднее общее образование | D9: 4 | F9: 12 | I9: =I11+I20+I30 -> 1551 | J9: =J11+J20+J30 -> 71 | K9: 1480 | L9: 788 | M9: 646 | P9: 46 | Q9: 567 | R9: 27 | S9: 540 | T9: 288 | U9: 252 | Y9: 778 | Z9: 26 | AA9: 752 | AB9: 391 | AC9: 325 | AF9: 36 | AG9: 166 | AH9: 14 | AI9: 152 | AJ9: 99 | AK9: 49 | AN9: 4 | AO9: 40 | AP9: 4 | AQ9: 36 | AR9: 10 | AS9: 20 | AV9: 6
A10: 12
A11: 13 | B11: БД | C11: Базовые дисциплины | D11: 2 | F11: 5 | I11: =I12+I13+I14+I15+I16+I17+I18 -> 910 | J11: =J12+J13+J14+J15+J16+J17+J18 -> 40 | K11: 870 | L11: 391 | M11: 457 | P11: =P12+P13+P14+P15+P16+P17+P18 -> 22 | Q11: =Q12+Q13+Q14+Q15+Q16+Q17+Q18 -> 343 | R11: =R12+R13+R14+R15+R16+R17+R18 -> 17 | S11: 326 | T11: 155 | U11: 171 | Y11: =Y12+Y13+Y14+Y15+Y16+Y17+Y18 -> 448 | Z11: =Z12+Z13+Z14+Z15+Z16+Z17+Z18 -> 13 | AA11: 435 | AB11: 182 | AC11: 237 | AF11: 16 | AG11: =AG12+AG13+AG14+AG15+AG16+AG17+AG18 -> 79 | AH11: =AH12+AH13+AH14+AH15+AH16+AH17+AH18 -> 6 | AI11: =AI12+AI13+AI14+AI15+AI16+AI17+AI18 -> 73 | AJ11: =AJ12+AJ13+AJ14+AJ15+AJ16+AJ17+AJ18 -> 44 | AK11: =AK12+AK13+AK14+AK15+AK16+AK17+AK18 -> 29 | AO11: =AO12+AO13+AO14+AO15+AO16+AO17+AO18 -> 40 | AP11: =AP12+AP13+AP14+AP15+AP16+AP17+AP18 -> 4 | AQ11: =AQ12+AQ13+AQ14+AQ15+AQ16+AQ17+AQ18 -> 36 | AR11: =AR12+AR13+AR14+AR15+AR16+AR17+AR18 -> 10 | AS11: =AS12+AS13+AS14+AS15+AS16+AS17+AS18 -> 20 | AV11: =AV12+AV13+AV14+AV15+AV16+AV17+AV18 -> 6
A12: 14 | B12: БД.01 | C12: Русский язык | D12: 2 | I12: 83 | J12: 5 | K12: 78 | L12: 34 | M12: 38 | P12: 6 | Q12: 37 | R12: 3 | S12: 34 | T12: 17 | U12: 17 | Y12: 46 | Z12: 2 | AA12: 44 | AB12: 17 | AC12: 21 | AF12: 6
A13: 15 | B13: БД.02 | C13: Литература | F13: 2 | I13: 122 | J13: 5 | K13: 117 | L13: 97 | M13: 18 | P13: 2 | Q13: 54 | R13: 3 | S13: 51 | T13: 41 | U13: 10 | Y13: 68 | Z13: 2 | AA13: 66 | AB13: 56 | AC13: 8 | AF13: 2
A14: 16 | B14: БД.03 | C14: Иностранный язык | F14: 2 | I14: 120 | J14: 3 | K14: 117 | L14: 6 | M14: 109 | P14: 2 | Q14: 55 | R14: 1 | S14: 54 | T14: 3 | U14: 51 | Y14: 65 | Z14: 2 | AA14: 63 | AB14: 3 | AC14: 58 | AF14: 2
A15: 17 | B15: БД.04 | C15: Математика: алгебра, начала математического анализа, геометрия | D15: 4 | I15: 269 | J15: 15 | K15: 254 | L15: 118 | M15: 130 | P15: 6 | Q15: 54 | R15: 3 | S15: 51 | T15: 30 | U15: 21 | Y15: 96 | Z15: 2 | AA15: 94 | AB15: 34 | AC15: 60 | AG15: 79 | AH15: 6 | AI15: 73 | AJ15: 44 | AK15: 29 | AO15: 40 | AP15: 4 | AQ15: 36 | AR15: 10 | AS15: 20 | AV15: 6
A16: 18 | B16: БД.05 | C16: История | F16: 2 | I16: 122 | J16: 5 | K16: 117 | L16: 95 | M16: 20 | P16: 2 | Q16: 54 | R16: 3 | S16: 51 | T16: 41 | U16: 10 | Y16: 68 | Z16: 2 | AA16: 66 | AB16: 54 | AC16: 10 | AF16: 2
A17: 19 | B17: БД.06 | C17: Физическая культура | F17: 2 | I17: 121 | J17: 4 | K17: 117 | L17: 5 | M17: 110 | P17: 2 | Q17: 53 | R17: 2 | S17: 51 | T17: 5 | U17: 46 | Y17: 68 | Z17: 2 | AA17: 66 | AC17: 64 | AF17: 2
A18: 20 | B18: БД.07 | C18: ОБЖ | F18: 2 | I18: 73 | J18: 3 | K18: 70 | L18: 36 | M18: 32 | P18: 2 | Q18: 36 | R18: 2 | S18: 34 | T18: 18 | U18: 16 | Y18: 37 | Z18: 1 | AA18: 36 | AB18: 18 | AC18: 16 | AF18: 2
A19: 22
A20: 23 | B20: ПД | C20: Профильные дисциплины | D20: 2 | F20: 6 | I20: =I21+I22+I23+I24+I25+I26+I27+I28 -> 596 | J20: =J21+J22+J23+J24+J25+J26+J27+J28 -> 27 | K20: 569 | L20: 368 | M20: 179 | P20: 22 | Q20: 224 | R20: 10 | S20: 214 | T20: 133 | U20: 81 | Y20: 330 | Z20: 13 | AA20: 317 | AB20: 209 | AC20: 88 | AF20: 20 | AG20: 42 | AH20: 4 | AI20: 38 | AJ20: 26 | AK20: 10 | AN20: 2
A21: 24 | B21: ПД.01 | C21: Информатика | F21: 2 | I21: 103 | J21: 3 | K21: 100 | L21: 52 | M21: 46 | P21: 2 | Q21: 42 | R21: 2 | S21: 40 | T21: 20 | U21: 20 | Y21: 61 | Z21: 1 | AA21: 60 | AB21: 32 | AC21: 26 | AF21: 2
A22: 25 | B22: ПД.02 | C22: Обществознание | F22: 2 | I22: 82 | J22: 4 | K22: 78 | L22: 56 | M22: 20 | P22: 2 | Q22: 34 | R22: 2 | S22: 32 | T22: 22 | U22: 10 | Y22: 48 | Z22: 2 | AA22: 46 | AB22: 34 | AC22: 10 | AF22: 2
A23: 26 | B23: ПД.03 | C23: Экономика | D23: 2 | I23: 76 | J23: 4 | K23: 72 | L23: 42 | M23: 24 | P23: 6 | Q23: 32 | R23: 2 | S23: 30 | T23: 18 | U23: 12 | Y23: 44 | Z23: 2 | AA23: 42 | AB23: 24 | AC23: 12 | AF23: 6
A24: 27 | B24: ПД.04 | C24: Право | D24: 2 | I24: 88 | J24: 3 | K24: 85 | L24: 54 | M24: 25 | P24: 6 | Q24: 35 | R24: 1 | S24: 34 | T24: 17 | U24: 17 | Y24: 53 | Z24: 2 | AA24: 51 | AB24: 37 | AC24: 8 | AF24: 6
A25: 28 | B25: ПД.05 | C25: Естествознание | F25: 3 | I25: 133 | J25: 7 | K25: 126 | L25: 92 | M25: 32 | P25: 2 | Q25: 43 | R25: 1 | S25: 42 | T25: 30 | U25: 12 | Y25: 48 | Z25: 2 | AA25: 46 | AB25: 36 | AC25: 10 | AG25: 42 | AH25: 4 | AI25: 38 | AJ25: 26 | AK25: 10 | AN25: 2
A26: 29 | B26: ПД.06 | C26: География | F26: 1 | I26: 38 | J26: 2 | K26: 36 | L26: 26 | M26: 10 | Q26: 38 | R26: 2 | S26: 36 | T26: 26 | U26: 10
A27: 30 | B27: ПД.07 | C27: Экология | F27: 2 | I27: 38 | J27: 2 | K27: 36 | L27: 24 | M27: 10 | P27: 2 | Y27: 38 | Z27: 2 | AA27: 36 | AB27: 24 | AC27: 10 | AF27: 2
A28: 31 | B28: ПД.08 | C28: Астрономия | F28: 2 | I28: 38 | J28: 2 | K28: 36 | L28: 22 | M28: 12 | P28: 2 | Y28: 38 | Z28: 2 | AA28: 36 | AB28: 22 | AC28: 12 | AF28: 2
A29: 33
A30: 34 | B30: ПОО | C30: Предлагаемые ОО | F30: 1 | I30: 45 | J30: 4 | K30: 41 | L30: 29 | M30: 10 | P30: 2 | AG30: 45 | AH30: 4 | AI30: 41 | AJ30: 29 | AK30: 10 | AN30: 2
A31: 35 | B31: ПОО.01 | C31: Родной язык | F31: 3 | I31: 45 | J31: 4 | K31: 41 | L31: 29 | M31: 10 | P31: 2 | AG31: 45 | AH31: 4 | AI31: 41 | AJ31: 29 | AK31: 10 | AN31: 2
A32: 36 | B32: ПОО.02 | C32: Русский язык и культура речи
A33: 40 | B33: ПП | C33: ПРОФЕССИОНАЛЬНАЯ ПОДГОТОВКА | D33: 23 | E33: 3 | F33: 29 | H33: 2 | I33: =I35+I43+I151+I47+I70 -> 4245 | J33: =J35+J43+J151+J47+J70 -> 259 | K33: =K35+K43+K151+K47+K70 -> 3986 | L33: =L35+L43+L47+L70 -> 1722 | M33: =M35+M43+M47+M70 -> 1340 | O33: =O35+O43+O151+O47+O70 -> 40 | P33: 164 | Q33: =Q47 -> 45 | R33: =R35+R43+R151+R47+R70 -> 5 | S33: =S35+S43+S151+S47+S70 -> 40 | T33: =T35+T43+T47+T70 -> 24 | U33: 16 | W33: 0 | X33: 0 | Y33: 86 | Z33: 4 | AA33: 82 | AC33: 24 | AF33: 8 | AG33: 446 | AH33: 42 | AI33: 404 | AJ33: 204 | AK33: 190 | AN33: 10 | AO33: 824 | AP33: 44 | AQ33: 780 | AR33: 392 | AS33: 276 | AV33: 40 | AW33: 612 | AX33: 34 | AY33: 578 | BA33: 239 | BC33: 20 | BD33: 8 | BE33: 864 | BF33: 48 | BG33: 816 | BH33: 329 | BI33: 223 | BL33: 48 | BM33: 612 | BN33: 34 | BO33: 578 | BP33: =BP35+BP43 -> 38 | BQ33: 222 | BT33: 24 | BU33: 648 | BV33: =BV35+BV43+BV151+BV47+BV70 -> 48 | BW33: 600 | BX33: 152 | BY33: 150 | CA33: 20 | CB33: 26
A34: 41
A35: 42 | B35: ОГСЭ | C35: Общий гуманитарный и социально-экономический учебный цикл | D35: 2 | F35: 3 | I35: =I36+I37+I38+I39+I40 -> 716 | J35: =J36+J37+J38+J39+J40 -> 48 | K35: 668 | L35: 132 | M35: 518 | P35: 18 | AG35: 158 | AH35: 12 | AI35: 146 | AJ35: 40 | AK35: 100 | AL35: 0 | AM35: 0 | AN35: 6 | AO35: 151 | AP35: 9 | AQ35: 142 | AR35: 54 | AS35: 86 | AV35: 2 | AW35: 108 | AX35: 4 | AY35: 104 | BA35: 104 | BE35: 91 | BF35: 9 | BG35: 82 | BI35: 82 | BM35: 132 | BN35: 6 | BO35: 126 | BP35: 38 | BQ35: 86 | BT35: 2 | BU35: 76 | BV35: =BV36+BV37+BV38+BV39+BV40 -> 8 | BW35: 68 | BY35: 60 | CB35: 8
A36: 43 | B36: ОГСЭ.01 | C36: Основы философии | F36: 4 | I36: 65 | J36: 3 | K36: 62 | L36: 54 | M36: 6 | P36: 2 | AO36: 65 | AP36: 3 | AQ36: 62 | AR36: 54 | AS36: 6 | AV36: 2
A37: 44 | B37: ОГСЭ.02 | C37: История | D37: 3 | I37: 52 | J37: 4 | K37: 48 | L37: 32 | M37: 10 | P37: 6 | AG37: 52 | AH37: 4 | AI37: 48 | AJ37: 32 | AK37: 10 | AN37: 6
A38: 45 | B38: ОГСЭ.03 | C38: Психология общения | F38: 7 | I38: 52 | J38: 2 | K38: 50 | L38: 38 | M38: 10 | P38: 2 | BM38: 52 | BN38: 2 | BO38: 50 | BP38: 38 | BQ38: 10 | BT38: 2
A39: 46 | B39: ОГСЭ.04 | C39: Иностранный язык в профессиональной деятельности | D39: 8 | I39: 267 | J39: 21 | K39: 246 | L39: 4 | M39: 236 | P39: 6 | AG39: 46 | AH39: 4 | AI39: 42 | AJ39: 4 | AK39: 38 | AO39: 43 | AP39: 3 | AQ39: 40 | AS39: 40 | AW39: 54 | AX39: 2 | AY39: 52 | BA39: 52 | BE39: 48 | BF39: 6 | BG39: 42 | BI39: 42 | BM39: 36 | BN39: 2 | BO39: 34 | BQ39: 34 | BU39: 40 | BV39: 4 | BW39: 36 | BY39: 30 | CB39: 6
A40: 47 | B40: ОГСЭ.05.01 | C40: Физическая культура | F40: 8 | I40: 280 | J40: 18 | K40: 262 | L40: 4 | M40: 256 | P40: 2 | AG40: 60 | AH40: 4 | AI40: 56 | AJ40: 4 | AK40: 52 | AO40: 43 | AP40: 3 | AQ40: 40 | AS40: 40 | AW40: 54 | AX40: 2 | AY40: 52 | BA40: 52 | BE40: 43 | BF40: 3 | BG40: 40 | BI40: 40 | BM40: 44 | BN40: 2 | BO40: 42 | BQ40: 42 | BU40: 36 | BV40: 4 | BW40: 32 | BY40: 30 | CB40: 2
A41: 48 | B41: ОГСЭ.05.02 | C41: Адаптированная физическая культура
A42: 50
A43: 51 | B43: ЕН | C43: Математический и общий естественнонаучный учебный цикл | F43: 2 | I43: =I44+I45 -> 110 | J43: =J44+J45 -> 2 | K43: 108 | L43: 54 | M43: 50 | P43: 4 | AO43: 110 | AP43: 2 | AQ43: 108 | AR43: 54 | AS43: 50 | AV43: 4
A44: 52 | B44: ЕН.01 | C44: Математика | F44: 4 | I44: 64 | J44: 2 | K44: 62 | L44: 30 | M44: 30 | P44: 2 | AO44: 64 | AP44: 2 | AQ44: 62 | AR44: 30 | AS44: 30 | AV44: 2
A45: 53 | B45: ЕН.02 | C45: Информационные технологии в профессиональной деятельности | F45: 4 | I45: 46 | K45: 46 | L45: 24 | M45: 20 | P45: 2 | AO45: 46 | AQ45: 46 | AR45: 24 | AS45: 20 | AV45: 2
A46: 55
A47: 56 | B47: ОПЦ | C47: Общепрофессиональный цикл | D47: 8 | E47: 3 | F47: 10 | H47: 1 | I47: =I48+I49+I50+I51+I52+I53+I54+I55+I56+I57+I58+I59+I60+I61+I68+I62+I63+I64+I65+I66+I67 -> 1593 | J47: =J48+J49+J50+J51+J52+J53+J54+J55+J56+J57+J58+J59+J60+J61+J68+J62+J63+J64+J65+J66+J67 -> 115 | K47: 1478 | L47: =L48+L49+L50+L51+L52+L53+L54+L55+L56+L57+L58+L59+L60+L61+L68+L62+L63+L64+L65+L66+L67 -> 906 | M47: 478 | O47: 20 | P47: 74 | Q47: =Q48+Q49+Q50+Q51+Q52+Q53+Q54+Q55+Q56+Q57+Q58+Q59+Q60+Q61+Q68+Q62+Q63+Q64+Q65+Q66+Q67 -> 45 | R47: 5 | S47: 40 | T47: 24 | U47: 16 | W47: 0 | X47: 0 | Y47: =Y48+Y49+Y50+Y51+Y52+Y53+Y54+Y55+Y56+Y57+Y58+Y59+Y60+Y61+Y68+Y62+Y63+Y64+Y65+Y66+Y67+Y70 -> 86 | Z47: =Z48+Z49+Z50+Z51+Z52+Z53+Z54+Z55+Z56+Z57+Z58+Z59+Z60+Z61+Z68+Z62+Z63+Z64+Z65+Z66+Z67+Z70 -> 4 | AA47: 82 | AB47: 50 | AC47: 24 | AD47: 0 | AE47: 0 | AF47: 8 | AG47: 204 | AH47: =AH48+AH49+AH50+AH51+AH52+AH53+AH54+AH55+AH56+AH57+AH58+AH59+AH60+AH61+AH68+AH62+AH63+AH64+AH65+AH66+AH67+AH70 -> 30 | AI47: 184 | AJ47: 120 | AK47: 60 | AL47: =AL48+AL49+AL50+AL51+AL52+AL53+AL54+AL55+AL56+AL57+AL58+AL59+AL60+AL61+AL68+AL62+AL63+AL64+AL65+AL66+AL67+AL70 -> 0 | AM47: =AM48+AM49+AM50+AM51+AM52+AM53+AM54+AM55+AM56+AM57+AM58+AM59+AM60+AM61+AM68+AM62+AM63+AM64+AM65+AM66+AM67+AM70 -> 0 | AN47: =AN48+AN49+AN50+AN51+AN52+AN53+AN54+AN55+AN56+AN57+AN58+AN59+AN60+AN61+AN68+AN62+AN63+AN64+AN65+AN66+AN67+AN70 -> 4 | AO47: 277 | AP47: 15 | AQ47: 262 | AR47: 164 | AS47: 78 | AV47: 20 | AW47: 392 | AX47: 22 | AY47: 370 | AZ47: 237 | BA47: 105 | BC47: 20 | BD47: 8 | BE47: 343 | BF47: 23 | BG47: 320 | BH47: 215 | BI47: 81 | BL47: 24 | BM47: 116 | BN47: 6 | BO47: 110 | BP47: 48 | BQ47: 58 | BT47: 4 | BU47: 130 | BV47: =BV48+BV49+BV50+BV51+BV52+BV53+BV54+BV55+BV56+BV57+BV58+BV59+BV60+BV61+BV68+BV62+BV63+BV64+BV65+BV66+BV67 -> 20 | BW47: 110 | BX47: 48 | BY47: 56 | CB47: 6
A48: 57 | B48: ОПЦ.01 | C48: Экономика организации | D48: 6 | I48: 130 | J48: 6 | K48: 124 | L48: 83 | M48: 35 | P48: 6 | AW48: 32 | AX48: 2 | AY48: 30 | AZ48: 15 | BA48: 15 | BE48: 98 | BF48: 4 | BG48: 94 | BH48: 68 | BI48: 20 | BL48: 6
A49: 58 | B49: ОПЦ.02 | C49: Статистика | D49: 4 | I49: 95 | J49: 7 | K49: 88 | L49: 62 | M49: 20 | P49: 6 | AG49: 40 | AH49: 4 | AI49: 36 | AJ49: 26 | AK49: 10 | AO49: 55 | AP49: 3 | AQ49: 52 | AR49: 36 | AS49: 10 | AV49: 6
A50: 59 | B50: ОПЦ.03 | C50: Менеджмент | D50: 4 | I50: 81 | J50: 3 | K50: 78 | L50: 50 | M50: 22 | P50: 6 | AO50: 81 | AP50: 3 | AQ50: 78 | AR50: 50 | AS50: 22 | AV50: 6
A51: 60 | B51: ОПЦ.04 | C51: Документационное обеспечение управления | F51: 4 | I51: 55 | J51: 3 | K51: 52 | L51: 34 | M51: 16 | P51: 2 | AO51: 55 | AP51: 3 | AQ51: 52 | AR51: 34 | AS51: 16 | AV51: 2
A52: 61 | B52: ОПЦ.05 | C52: Правовое обеспечение профессиональной деятельности | F52: 5 | I52: 36 | J52: 2 | K52: 34 | L52: 22 | M52: 10 | P52: 2 | AW52: 36 | AX52: 2 | AY52: 34 | AZ52: 22 | BA52: 10 | BD52: 2
A53: 62 | B53: ОПЦ.06 | C53: Финансы, денежное обращение и кредит | F53: 6 | I53: 87 | J53: 7 | K53: 80 | L53: 48 | M53: 30 | P53: 2 | AW53: 43 | AX53: 3 | AY53: 40 | AZ53: 25 | BA53: 15 | BE53: 44 | BF53: 4 | BG53: 40 | BH53: 23 | BI53: 15 | BL53: 2
A54: 63 | B54: ОПЦ.07 | C54: Налоги и налогообложение | D54: 6 | I54: 79 | J54: 7 | K54: 72 | L54: 43 | M54: 23 | P54: 6 | AW54: 45 | AX54: 3 | AY54: 42 | AZ54: 27 | BA54: 15 | BE54: 34 | BF54: 4 | BG54: 30 | BH54: 16 | BI54: 8 | BL54: 6
A55: 64 | B55: ОПЦ.08 | C55: Основы бухгалтерского учета | D55: 2 | I55: 87 | J55: 7 | K55: 80 | L55: 48 | M55: 26 | P55: 6 | Q55: 45 | R55: 5 | S55: 40 | T55: 24 | U55: 16 | Y55: 42 | Z55: 2 | AA55: 40 | AB55: 24 | AC55: 10 | AF55: 6
A56: 65 | B56: ОПЦ.09 | C56: Аудит | F56: 6 | I56: 85 | J56: 7 | K56: 78 | L56: 56 | M56: 20 | P56: 2 | AW56: 41 | AX56: 3 | AY56: 38 | AZ56: 28 | BA56: 10 | BE56: 44 | BF56: 4 | BG56: 40 | BH56: 28 | BI56: 10 | BL56: 2
A57: 66 | B57: ОПЦ.10 | C57: Основы экономической теории | D57: 4 | I57: 95 | J57: 7 | K57: 88 | L57: 52 | M57: 30 | P57: 6 | AG57: 40 | AH57: 4 | AI57: 36 | AJ57: 26 | AK57: 10 | AO57: 55 | AP57: 3 | AQ57: 52 | AR57: 26 | AS57: 20 | AV57: 6
A58: 67 | B58: ОПЦ.11 | C58: Анализ финансового – хозяйственной деятельности | D58: 6 | I58: 133 | J58: 7 | K58: 126 | L58: 80 | M58: 40 | P58: 6 | AW58: 63 | AX58: 3 | AY58: 60 | AZ58: 40 | BA58: 20 | BE58: 70 | BF58: 4 | BG58: 66 | BH58: 40 | BI58: 20 | BL58: 6
A59: 68 | B59: ОПЦ.12 | C59: Безопасность жизнедеятельности | F59: 6 | I59: 76 | J59: 6 | K59: 70 | L59: 60 | M59: 8 | P59: 2 | AW59: 23 | AX59: 3 | AY59: 20 | AZ59: 20 | BE59: 53 | BF59: 3 | BG59: 50 | BH59: 40 | BI59: 8 | BL59: 2
A60: 69 | B60: ОПЦ.13 | C60: Бухгалтерский учет | D60: 5 | H60: 5 | I60: 172 | J60: 10 | K60: 162 | L60: 96 | M60: 40 | O60: 20 | P60: 6 | AG60: 32 | AH60: 4 | AI60: 28 | AJ60: 18 | AK60: 10 | AO60: 31 | AP60: 3 | AQ60: 28 | AR60: 18 | AS60: 10 | AW60: 109 | AX60: 3 | AY60: 106 | AZ60: 60 | BA60: 20 | BC60: 20 | BD60: 6
A61: 70 | B61: ОПЦ.14 | C61: Основы финансовой грамотности | F61: 2 | I61: 44 | J61: 2 | K61: 42 | L61: 26 | M61: 14 | P61: 2 | Y61: 44 | Z61: 2 | AA61: 42 | AB61: 26 | AC61: 14 | AF61: 2
A62: 71 | B62: ОПЦ.15 | C62: Рыночная экономика | F62: 7 | I62: 36 | J62: 2 | K62: 34 | L62: 20 | M62: 12 | P62: 2 | BM62: 36 | BN62: 2 | BO62: 34 | BP62: 20 | BQ62: 12 | BT62: 2
A63: 72 | B63: ОПЦ.16 | C63: Карьерное моделирование | F63: 3 | I63: 54 | J63: 4 | K63: 50 | L63: 28 | M63: 20 | P63: 2 | AG63: 54 | AH63: 4 | AI63: 50 | AJ63: 28 | AK63: 20 | AN63: 2
A64: 73 | B64: ОПЦ.17 | C64: Налоговый учет | F64: 8 | I64: 44 | J64: 6 | K64: 38 | L64: 24 | M64: 12 | P64: 2 | BU64: 44 | BV64: 6 | BW64: 38 | BX64: 24 | BY64: 12 | CB64: 2
A65: 74 | B65: ОПЦ.18 | C65: Современные технологические процессы, оборудование и техника в экономике | F65: 8 | I65: 85 | J65: 9 | K65: 76 | L65: 4 | M65: 70 | P65: 2 | BM65: 40 | BN65: 2 | BO65: 38 | BP65: 2 | BQ65: 36 | BU65: 45 | BV65: 7 | BW65: 38 | BX65: 2 | BY65: 34 | CB65: 2
A66: 75 | B66: ОПЦ.19 | C66: Основы здорового образа жизни | E66: 3 | I66: 38 | J66: 4 | K66: 34 | L66: 22 | M66: 10 | P66: 2 | AG66: 38 | AH66: 4 | AI66: 34 | AJ66: 22 | AK66: 10 | AN66: 2
A67: 76 | B67: ОПЦ.20 | C67: Деловой этикет | E67: 8 | I67: 41 | J67: 7 | K67: 34 | L67: 22 | M67: 10 | P67: 2 | BU67: 41 | BV67: 7 | BW67: 34 | BX67: 22 | BY67: 10 | CB67: 2
A68: 77 | B68: ОПЦ.21 | C68: Основы предпринимательства | E68: 7 | I68: 40 | J68: 2 | K68: 38 | L68: 26 | M68: 10 | P68: 2 | BM68: 40 | BN68: 2 | BO68: 38 | BP68: 26 | BQ68: 10 | BT68: 2
A69: 79
A70: 80 | B70: ПЦ | C70: Профессиональный цикл | D70: 13 | F70: 14 | H70: 1 | I70: =I72+I83+I95+I106+I118+I129+I151 -> 1718 | J70: 94 | K70: 1624 | L70: 630 | M70: 294 | O70: 20 | P70: 68 | AG70: 84 | AH70: 10 | AI70: 74 | AJ70: 44 | AK70: 30 | AO70: 286 | AP70: 18 | AQ70: 268 | AR70: 120 | AS70: 62 | AV70: 14 | AW70: 112 | AX70: 8 | AY70: 104 | AZ70: 74 | BA70: 30 | BE70: 430 | BF70: 16 | BG70: 414 | BH70: 114 | BI70: 60 | BL70: 24 | BM70: 364 | BN70: 22 | BO70: 342 | BP70: 174 | BQ70: 78 | BT70: 18 | BU70: 442 | BV70: 20 | BW70: 422 | BX70: 104 | BY70: 34 | CA70: 20 | CB70: 12
A71: 81
A72: 82 | B72: ПМ.01 | C72: Документирование хозяйственных операций и ведение бухгалтерского учета активов организации | D72: 1 | F72: 3 | I72: =I74+I76+I78+I80 -> 190 | J72: =J74+J76+J78+J80 -> 12 | K72: 178 | L72: =L74 -> 54 | M72: =M74 -> 44 | P72: 8 | AG72: =AI72+AH74 -> 46 | AH72: =AH74+AH76+AH78+AH80 -> 6 | AI72: =AI74+AI76+AI78+AI80 -> 40 | AJ72: 20 | AK72: 20 | AN72: 2 | AO72: =AQ72+AP74 -> 144 | AP72: 6 | AQ72: =AQ74+AQ76+AQ78+AQ80 -> 138 | AR72: 34 | AS72: 24 | AV72: 6
A73: 83
A74: 84 | B74: МДК.01.01 | C74: Практические основы бухгалтерского учета имущества организации | F74: 3 | I74: 112 | J74: 12 | K74: 100 | L74: 54 | M74: 44 | P74: 2 | AG74: =46 -> 46 | AH74: 6 | AI74: =40 -> 40 | AJ74: =20 -> 20 | AK74: =20 -> 20 | AN74: 2 | AO74: =AP74+AQ74 -> 66 | AP74: 6 | AQ74: 60
A75: 86
A76: 87 | B76: УП.01.01 | C76: Учебная практика по документированию хозяйственных операций и ведению бухгалтерского учета активов организации | F76: 4 | G76: РП | I76: 36 | K76: 36 | L76: нед | M76: 1 | Q76: час | T76: нед | Y76: час | AB76: нед | AG76: час | AJ76: нед | AO76: час | AQ76: 36 | AR76: нед | AS76: 1 | AW76: час | AZ76: нед | BE76: час | BH76: нед | BM76: час | BP76: нед | BU76: час | BX76: нед
A77: 89
A78: 90 | B78: ПП.01.01 | C78: Производственная практика по документированию хозяйственных операций и ведению бухгалтерского учета активов организации | F78: 4 | G78: РП | I78: 36 | K78: 36 | L78: нед | M78: 1 | Q78: час | T78: нед | Y78: час | AB78: нед | AG78: час | AJ78: нед | AO78: час | AQ78: 36 | AR78: нед | AS78: 1 | AW78: час | AZ78: нед | BE78: час | BH78: нед | BM78: час | BP78: нед | BU78: час | BX78: нед
A79: 92
A80: 93 | B80: ПM.01.ЭК | C80: Экзамен квалификационный | D80: 4 | I80: 6 | K80: 6 | P80: 6 | AO80: 6 | AQ80: 6 | AV80: 6
A81: 94 | C81: Всего часов по МДК | I81: 112 | K81: 100
A82: 95
A83: 96 | B83: ПМ.02 | C83: Ведение бухгалтерского учета источников формирования активов, выполнение работ по инвентаризации активов и финансовых обязательств организации | D83: 3 | F83: 2 | I83: =I85+I86+I88+I90+I92 -> 418 | J83: =J85+J86+J88+J90+J92 -> 26 | K83: 392 | L83: =L85 -> 90 | M83: 89 | P83: 18 | AG83: =AG85+AG86 -> 38 | AH83: =AH85+AH86+AH88+AH90+AH92 -> 4 | AI83: =AI85+AI86+AI88+AI90+AI92 -> 34 | AJ83: =AJ85 -> 24 | AK83: 10 | AO83: =AO85+AO86 -> 142 | AP83: 12 | AQ83: =AQ85+AQ86+AQ88+AQ90+AQ92 -> 130 | AR83: 86 | AS83: 38 | AV83: 6 | AW83: =AW85+AW86 -> 56 | AX83: =AX85+AX86+AX88+AX90+AX92 -> 4 | AY83: =AY85+AY86+AY88+AY90+AY92 -> 52 | AZ83: 34 | BA83: 18 | BE83: =BE85+BE86 -> 68 | BF83: =BF85+BF86+BF88+BF90+BF92 -> 6 | BG83: =BG85+BG86+BG88+BG90+BG92 -> 176 | BH83: 36 | BI83: 20 | BL83: 12
A84: 97
A85: 98 | B85: МДК.02.01 | C85: Практические основы бухгалтерского учета источников формирования имущества организации | D85: 4 | I85: 144 | J85: 10 | K85: 134 | L85: 90 | M85: 38 | P85: 6 | AG85: 38 | AH85: 4 | AI85: 34 | AJ85: 24 | AK85: 10 | AO85: 106 | AP85: 6 | AQ85: 100 | AR85: 66 | AS85: 28 | AV85: 6
A86: 99 | B86: МДК.02.02 | C86: Бухгалтерская технология проведения и оформления инвентаризации | D86: 6 | I86: 160 | J86: 16 | K86: 144 | L86: 90 | M86: 48 | P86: 6 | AO86: 36 | AP86: 6 | AQ86: 30 | AR86: 20 | AS86: 10 | AW86: 56 | AX86: 4 | AY86: 52 | AZ86: 34 | BA86: 18 | BE86: 68 | BF86: 6 | BG86: 62 | BH86: 36 | BI86: 20 | BL86: 6
A87: 101
A88: 102 | B88: УП.02.01 | C88: Учебная практика по ведению бухгалтерского учета источников формирования активов, выполнению работ по инвентаризации активов и финансовых обязательств организации | F88: 6 | G88: РП | I88: 72 | K88: 72 | L88: нед | M88: 2 | Q88: час | T88: нед | Y88: час | AB88: нед | AG88: час | AJ88: нед | AO88: час | AR88: нед | AW88: час | AZ88: нед | BE88: час | BG88: 72 | BH88: нед | BI88: 2 | BM88: час | BP88: нед | BU88: час | BX88: нед
A89: 104
A90: 105 | B90: ПП.02.01 | C90: Производственная практика по ведению бухгалтерского учета источников формирования активов, выполнению работ по инвентаризации активов и финансовых | F90: 6 | G90: РП | I90: 36 | K90: 36 | L90: нед | M90: 1 | Q90: час | T90: нед | Y90: час | AB90: нед | AG90: час | AJ90: нед | AO90: час | AR90: нед | AW90: час | AZ90: нед | BE90: час | BG90: 36 | BH90: нед | BI90: 1 | BM90: час | BP90: нед | BU90: час | BX90: нед
A91: 107
A92: 108 | B92: ПM.02.ЭК | C92: Экзамен квалификационный | D92: 6 | I92: 6 | K92: 6 | P92: 6 | BE92: 6 | BG92: 6 | BL92: 6
A93: 109 | C93: Всего часов по МДК | I93: 304 | K93: 278
A94: 110
A95: 111 | B95: ПМ.03 | C95: Проведение расчетов с бюджетом и внебюджетными фондами | D95: 2 | F95: 2 | I95: =I97+I99+I101+I103 -> 214 | J95: =J97+J99+J101+J103 -> 6 | K95: 208 | L95: =L97 -> 80 | M95: =M97+M99+M101+M103 -> 46 | P95: 12 | BM95: =BN95+BO95 -> 214 | BN95: 6 | BO95: =BO97+BO99+BO101+BO103 -> 208 | BP95: 80 | BQ95: 44 | BT95: 12
A96: 112
A97: 113 | B97: МДК.03.01 | C97: Организация расчетов с бюджетом и внебюджетными фондами | D97: 7 | I97: 136 | J97: 6 | K97: 130 | L97: 80 | M97: 44 | P97: 6 | BM97: 136 | BN97: 6 | BO97: 130 | BP97: 80 | BQ97: 44 | BT97: 6
A98: 115
A99: 116 | B99: УП.03.01 | C99: Учебная практика по организации расчетов с бюджетом и внебюджетными фондами | F99: 7 | G99: РП | I99: 36 | K99: 36 | L99: нед | M99: 1 | Q99: час | T99: нед | Y99: час | AB99: нед | AG99: час | AJ99: нед | AO99: час | AR99: нед | AW99: час | AZ99: нед | BE99: час | BH99: нед | BM99: час | BO99: 36 | BP99: нед | BQ99: 1 | BU99: час | BX99: нед
A100: 118
A101: 119 | B101: ПП.03.01 | C101: Производственная практика по организации расчетов с бюджетом и внебюджетными фондами | F101: 7 | G101: РП | I101: 36 | K101: 36 | L101: нед | M101: 1 | Q101: час | T101: нед | Y101: час | AB101: нед | AG101: час | AJ101: нед | AO101: час | AR101: нед | AW101: час | AZ101: нед | BE101: час | BH101: нед | BM101: час | BO101: 36 | BP101: нед | BQ101: 1 | BU101: час | BX101: нед
A102: 121
A103: 122 | B103: ПM.03.ЭК | C103: Экзамен квалификационный | D103: 7 | I103: 6 | K103: 6 | P103: 6 | BM103: 6 | BO103: 6 | BT103: 6
A104: 123 | C104: Всего часов по МДК | I104: 136 | K104: 130
A105: 124
A106: 125 | B106: ПМ.04 | C106: Составление и использование бухгалтерской (финансовой) отчетности | D106: 3 | F106: 2 | I106: =I108+I109+I111+I113+I115 -> 392 | J106: =J108+J109+J111+J113+J115 -> 32 | K106: =K108+K109+K111+K113+K115 -> 360 | L106: =L108+L109 -> 194 | M106: =M108+M109 -> 76 | P106: =P108+P109+P115 -> 18 | BE106: =BE108+BE109 -> 86 | BF106: =BF108+BF109+BF111+BF113+BF115 -> 6 | BG106: =BG108+BG109+BG111+BG113+BG115 -> 80 | BH106: 52 | BI106: 28 | BM106: =BM108+BM109 -> 150 | BN106: =BN108+BN109+BN111+BN113+BN115 -> 16 | BO106: 134 | BP106: 94 | BQ106: 34 | BT106: 6 | BU106: 156 | BV106: =BV108+BV109+BV111+BV113+BV115 -> 10 | BW106: =BW108+BW109+BW111+BW113+BW115 -> 146 | BX106: =BX108+BX109 -> 48 | BY106: =BY108+BY109 -> 14 | CB106: =CB109+CB115 -> 12
A107: 126
A108: 127 | B108: МДК.04.01 | C108: Технология составления бухгалтерской (финансовой) отчетности | D108: 7 | I108: 158 | J108: 14 | K108: 144 | L108: 90 | M108: 48 | P108: 6 | BE108: 86 | BF108: 6 | BG108: 80 | BH108: 52 | BI108: 28 | BM108: 72 | BN108: 8 | BO108: 64 | BP108: 38 | BQ108: 20 | BT108: 6
A109: 128 | B109: МДК.04.02 | C109: Основы анализа бухгалтерской (финансовой) отчетности | D109: 8 | I109: =K109+J109 -> 156 | J109: 18 | K109: =L109+M109+P109 -> 138 | L109: =T109+AB109+AJ109+AR109+AZ109+BH109+BP109+BX109 -> 104 | M109: 28 | P109: 6 | BM109: 78 | BN109: 8 | BO109: 70 | BP109: 56 | BQ109: 14 | BU109: 84 | BV109: 10 | BW109: =BX109+BY109+CB109 -> 68 | BX109: =54-6 -> 48 | BY109: 14 | CB109: 6
A110: 130
A111: 131 | B111: УП.04.01 | C111: Учебная практика по составлению и использованию бухгалтерской (финансовой) отчетности | F111: 8 | G111: РП | I111: 36 | K111: 36 | L111: нед | M111: 1 | Q111: час | T111: нед | Y111: час | AB111: нед | AG111: час | AJ111: нед | AO111: час | AR111: нед | AW111: час | AZ111: нед | BE111: час | BH111: нед | BM111: час | BP111: нед | BU111: час | BW111: 36 | BX111: нед | BY111: 1
A112: 133
A113: 134 | B113: ПП.04.01 | C113: Производственная практика по составлению и использованию бухгалтерской (финансовой) отчетности | F113: 8 | G113: РП | I113: 36 | K113: 36 | L113: нед | M113: 1 | Q113: час | T113: нед | Y113: час | AB113: нед | AG113: час | AJ113: нед | AO113: час | AR113: нед | AW113: час | AZ113: нед | BE113: час | BH113: нед | BM113: час | BP113: нед | BU113: час | BW113: 36 | BX113: нед | BY113: 1
A114: 136
A115: 137 | B115: ПM.04.ЭК | C115: Экзамен квалификационный | D115: 8 | I115: 6 | K115: 6 | P115: 6 | BT115: 6 | BW115: 6 | CB115: 6
A116: 138 | C116: Всего часов по МДК | I116: =I109+I108 -> 314 | K116: =K109+K108 -> 282
A117: 139
A118: 140 | B118: ПМ.05 | C118: Осуществление налогового учета и налогового планирования в организации | D118: 2 | F118: 2 | H118: 1 | I118: =I120+I122+I124+I126 -> 178 | J118: =J120+J122+J124+J126 -> 10 | K118: 168 | L118: =L120 -> 44 | M118: =M120 -> 20 | O118: 20 | P118: =P120+P126 -> 12 | BU118: 178 | BV118: 10 | BW118: =BW120+BW122+BW124+BW126 -> 168 | BX118: =BX120 -> 44 | BY118: 20 | CA118: 20 | CB118: 12
A119: 141
A120: 142 | B120: МДК.05.01 | C120: Организация и планирование налоговой деятельности | D120: 8 | H120: 8 | I120: =106-6 -> 100 | J120: 10 | K120: =L120+M120+O120+P120 -> 90 | L120: =T120+AB120+AJ120+AR120+AZ120+BH120+BP120+BX120 -> 44 | M120: 20 | O120: 20 | P120: 6 | BU120: 106 | BV120: 10 | BW120: 90 | BX120: =50-6 -> 44 | BY120: 20 | CA120: 20 | CB120: 6
A121: 144
A122: 145 | B122: УП.05.01 | C122: Учебная практика по осуществлению налогового учета и налогового планирования в организации | F122: 8 | G122: РП | I122: 36 | K122: 36 | L122: нед | M122: 1 | Q122: час | T122: нед | Y122: час | AB122: нед | AG122: час | AJ122: нед | AO122: час | AR122: нед | AW122: час | AZ122: нед | BE122: час | BH122: нед | BM122: час | BP122: нед | BU122: час | BW122: 36 | BX122: нед | BY122: 1
A123: 147
A124: 148 | B124: ПП.05.01 | C124: Производственная практика по осуществлению налогового учета и налогового планирования в организации | F124: 8 | G124: РП | I124: 36 | K124: 36 | L124: нед | M124: 1 | Q124: час | T124: нед | Y124: час | AB124: нед | AG124: час | AJ124: нед | AO124: час | AR124: нед | AW124: час | AZ124: нед | BE124: час | BH124: нед | BM124: час | BP124: нед | BU124: час | BW124: 36 | BX124: нед | BY124: 1
A125: 150
A126: 151 | B126: ПM.05.ЭК | C126: Экзамен квалификационный | D126: 8 | I126: 6 | K126: 6 | P126: 6 | BW126: 6 | CB126: 6
A127: 152 | C127: Всего часов по МДК | I127: =I120 -> 100 | K127: =K120 -> 90
A128: 153
A129: 154 | B129: ПМ.06 | C129: Выполнение работ по одной или нескольким профессиям, должностям служащих: 23369 Кассир | D129: 2 | F129: 2 | I129: =I131+I133+I135+I137 -> 218 | J129: 8 | K129: 210 | L129: 66 | M129: 24 | P129: 12 | AW129: 56 | AX129: 4 | AY129: 52 | AZ129: 40 | BA129: 12 | BE129: 162 | BF129: 4 | BG129: 158 | BH129: 26 | BI129: 12 | BL129: 12
A130: 155
A131: 156 | B131: МДК.06.01 | C131: Организация и технология ведения кассовых операций в организации | D131: 6 | I131: 104 | J131: 8 | K131: 96 | L131: 66 | M131: 24 | P131: 6 | AW131: 56 | AX131: 4 | AY131: 52 | AZ131: 40 | BA131: 12 | BE131: 48 | BF131: 4 | BG131: 44 | BH131: 26 | BI131: 12 | BL131: 6
A132: 158
A133: 159 | B133: УП.06.01 | C133: Учебная практика по выполнению работ по одной или нескольким профессиям, должностям служащих: 23369 Кассир | F133: 6 | G133: РП | I133: 72 | K133: 72 | L133: нед | M133: 2 | Q133: час | T133: нед | Y133: час | AB133: нед | AG133: час | AJ133: нед | AO133: час | AR133: нед | AW133: час | AZ133: нед | BE133: час | BG133: 72 | BH133: нед | BI133: 2 | BM133: час | BP133: нед | BU133: час | BX133: нед
A134: 161
A135: 162 | B135: ПП.06.01 | C135: Производственная практика по выполнению работ по одной или нескольким профессиям, должностям служащих: 23369 Кассир | F135: 6 | G135: РП | I135: 36 | K135: 36 | L135: нед | M135: 1 | Q135: час | T135: нед | Y135: час | AB135: нед | AG135: час | AJ135: нед | AO135: час | AR135: нед | AW135: час | AZ135: нед | BE135: час | BG135: 36 | BH135: нед | BI135: 1 | BM135: час | BP135: нед | BU135: час | BX135: нед
A136: 164
A137: 165 | B137: ПM.06.ЭК | C137: Квалификационный экзамен | D137: 6 | I137: 6 | K137: 6 | P137: 6 | BE137: 6 | BG137: 6 | BL137: 6
A138: 166 | C138: Всего часов по МДК | I138: 104 | K138: 96
A139: 167
A140: 169
A141: 170 | C141: Учебная и производственная (по профилю специальности) практики | I141: =I143+I147 -> 504 | K141: 504 | L141: нед | M141: 14 | Q141: час | T141: нед | Y141: час | AB141: нед | AG141: час | AJ141: нед | AO141: час | AQ141: 72 | AR141: нед | AS141: 2 | AW141: час | AZ141: нед | BE141: час | BG141: 216 | BH141: нед | BI141: 6 | BM141: час | BO141: 72 | BP141: нед | BQ141: 2 | BU141: час | BW141: 144 | BX141: нед | BY141: 4
A142: 171
A143: 172 | C143: Учебная практика | I143: 288 | K143: 288 | L143: нед | M143: 8 | Q143: час | T143: нед | Y143: час | AB143: нед | AG143: час | AJ143: нед | AO143: час | AQ143: 36 | AR143: нед | AS143: 1 | AW143: час | AZ143: нед | BE143: час | BG143: 144 | BH143: нед | BI143: 4 | BM143: час | BO143: 36 | BP143: нед | BQ143: 1 | BU143: час | BW143: 72 | BX143: нед | BY143: 2
A144: 173 | C144: Концентрированная | I144: 288 | K144: 288 | L144: нед | M144: 8 | Q144: час | T144: нед | Y144: час | AB144: нед | AG144: час | AJ144: нед | AO144: час | AQ144: 36 | AR144: нед | AS144: 1 | AW144: час | AZ144: нед | BE144: час | BG144: 144 | BH144: нед | BI144: 4 | BM144: час | BO144: 36 | BP144: нед | BQ144: 1 | BU144: час | BW144: 72 | BX144: нед | BY144: 2
A145: 174 | C145: Рассредоточенная | L145: нед | Q145: час | T145: нед | Y145: час | AB145: нед | AG145: час | AJ145: нед | AO145: час | AR145: нед | AW145: час | AZ145: нед | BE145: час | BH145: нед | BM145: час | BP145: нед | BU145: час | BX145: нед
A146: 175
A147: 176 | C147: Производственная (по профилю специальности) практика | I147: 216 | K147: 216 | L147: нед | M147: 6 | Q147: час | T147: нед | Y147: час | AB147: нед | AG147: час | AJ147: нед | AO147: час | AQ147: 36 | AR147: нед | AS147: 1 | AW147: час | AZ147: нед | BE147: час | BG147: 72 | BH147: нед | BI147: 2 | BM147: час | BO147: 36 | BP147: нед | BQ147: 1 | BU147: час | BW147: 72 | BX147: нед | BY147: 2
A148: 177 | C148: Концентрированная | I148: 216 | K148: 216 | L148: нед | M148: 6 | Q148: час | T148: нед | Y148: час | AB148: нед | AG148: час | AJ148: нед | AO148: час | AQ148: 36 | AR148: нед | AS148: 1 | AW148: час | AZ148: нед | BE148: час | BG148: 72 | BH148: нед | BI148: 2 | BM148: час | BO148: 36 | BP148: нед | BQ148: 1 | BU148: час | BW148: 72 | BX148: нед | BY148: 2
A149: 178 | C149: Рассредоточенная | L149: нед | Q149: час | T149: нед | Y149: час | AB149: нед | AG149: час | AJ149: нед | AO149: час | AR149: нед | AW149: час | AZ149: нед | BE149: час | BH149: нед | BM149: час | BP149: нед | BU149: час | BX149: нед
A150: 179
A151: 180 | B151: ПДП | C151: ПРОИЗВОДСТВЕННАЯ ПРАКТИКА (ПРЕДДИПЛОМНАЯ) | F151: 8 | G151: РП | I151: 108 | K151: 108 | L151: нед | M151: 3 | Q151: час | T151: нед | Y151: час | AB151: нед | AG151: час | AJ151: нед | AO151: час | AR151: нед | AW151: час | AZ151: нед | BE151: час | BH151: нед | BM151: час | BP151: нед | BU151: час | BW151: 108 | BX151: нед | BY151: 3
A152: 181
A153: 182 | C153: Государственная итоговая аттестация | I153: 216 | K153: 216 | L153: нед | M153: 6 | Q153: час | T153: нед | Y153: час | AB153: нед | AG153: час | AJ153: нед | AO153: час | AR153: нед | AW153: час | AZ153: нед | BE153: час | BH153: нед | BM153: час | BP153: нед | BU153: час | BW153: 216 | BX153: нед | BY153: 6
A154: 183 | C154: Подготовка выпускной квалификационной работы | I154: 144 | K154: 144 | L154: нед | M154: 4 | Q154: час | T154: нед | Y154: час | AB154: нед | AG154: час | AJ154: нед | AO154: час | AR154: нед | AW154: час | AZ154: нед | BE154: час | BH154: нед | BM154: час | BP154: нед | BU154: час | BW154: 144 | BX154: нед | BY154: 4
A155: 184 | C155: Защита выпускной квалификационной работы | I155: 72 | K155: 72 | L155: нед | M155: 2 | Q155: час | T155: нед | Y155: час | AB155: нед | AG155: час | AJ155: нед | AO155: час | AR155: нед | AW155: час | AZ155: нед | BE155: час | BH155: нед | BM155: час | BP155: нед | BU155: час | BW155: 72 | BX155: нед | BY155: 2
A156: 185 | C156: Подготовка к государственным экзаменам | L156: нед | Q156: час | T156: нед | Y156: час | AB156: нед | AG156: час | AJ156: нед | AO156: час | AR156: нед | AW156: час | AZ156: нед | BE156: час | BH156: нед | BM156: час | BP156: нед | BU156: час | BX156: нед
A157: 186 | C157: Проведение государственных экзаменов | L157: нед | Q157: час | T157: нед | Y157: час | AB157: нед | AG157: час | AJ157: нед | AO157: час | AR157: нед | AW157: час | AZ157: нед | BE157: час | BH157: нед | BM157: час | BP157: нед | BU157: час | BX157: нед
A158: 187
A159: 192 | C159: в т.ч. в период обучения по циклам
A160: 193
A161: 194 | C161: ОБЪЕМ ОБРАЗОВАТЕЛЬНОЙ ПРОГРАММЫ В АКАДЕМИЧЕСКИХ ЧАСАХ | D161: 27 | E161: 3 | F161: 41 | H161: 2 | I161: =I9+I35+I43+I47+I70+I153 -> 5904 | J161: =J9+J35+J43+J47+J70+J153 -> 330 | K161: =K9+K35+K43+K47+K70+K153 -> 5574 | L161: =L9+L35+L43+L47+L70 -> 2510 | M161: =M9+M35+M43+M47+M70+K153 -> 2202 | O161: =O9+O35+O43+O47+O70+O153 -> 40 | P161: 210 | Q161: =Q8+Q47 -> 612 | R161: 32 | S161: 580 | T161: 312 | U161: 268 | Y161: =Y8+Y47 -> 864 | Z161: 30 | AA161: 834 | AB161: 441 | AC161: 349 | AF161: 44 | AG161: 612 | AH161: 56 | AI161: 556 | AJ161: 303 | AK161: 239 | AN161: 14 | AO161: 864 | AP161: 48 | AQ161: 816 | AR161: 402 | AS161: 296 | AV161: 46 | AW161: 612 | AX161: 34 | AY161: 578 | AZ161: 311 | BA161: 239 | BC161: 20 | BD161: 8 | BE161: 864 | BF161: 48 | BG161: 816 | BH161: 329 | BI161: 223 | BL161: 48 | BM161: 612 | BN161: 34 | BO161: 578 | BP161: 260 | BQ161: 222 | BT161: 24 | BU161: 864 | BV161: 48 | BW161: 816 | BX161: =BX9+BX35+BX43+BX47+BX70 -> 152 | BY161: 366 | CA161: 20 | CB161: =CB9+CB35+CB43+CB47+CB70 -> 26 | CC161: =CD161+CE161 -> 5904 | CD161: =R161+Z161+AH161+AP161+AX161+BF161+BN161+BV161 -> 330 | CE161: 5574 | CF161: 2510 | CG161: 2202 | CH161: 0 | CI161: 40 | CJ161: 210 | CL161: =CC161-I161 -> 0 | CM161: =CD161-J161 -> 0 | CN161: 0 | CO161: 0 | CP161: 0 | CQ161: 0 | CR161: 0 | CS161: 0
A162: 195
A163: 196 | C163: Экзамены (без учета физ. культуры) | Y163: 4 | AG163: 1 | AO163: 6 | AW163: 1 | BE163: 7 | BM163: 3 | BU163: 5
A164: 197 | C164: Зачеты (без учета физ. культуры) | AG164: 1 | BM164: 1 | BU164: 1
A165: 198 | C165: Диффер. зачеты (без учета физ. культуры) | Q165: 1 | Y165: 9 | AG165: 3 | AO165: 6 | AW165: 1 | BE165: 5 | BM165: 3 | BU165: 5
A166: 199 | C166: Курсовые проекты (без учета физ. культуры)
A167: 200 | C167: Курсовые работы (без учета физ. культуры) | AG167: =AG161++AO161 -> 1476 | AW167: 1 | BU167: 1
C168: В суммучасов каждого цикла включена учебная нагрузка по промежуточной аттестации

Sheet Комплесные
B1: № | C1: Вид контроля | D1: Наименование комплексного вида контроля | E1: Семестр | G1: [Семестр проведения комплексного вида контроля] Наименование дисциплины/МДК
B2: 1 | C2: Диф. зач | D2: Комплексный диф. зачет | E2: 4 | F2: 4 | G2: [4] | H2: ПП.01.01 Производственная практика по документированию хозяйственных операций и ведению бухгалтерского учета активов организации
F3: 4 | G3: [4] | H3: УП.01.01 Учебная практика по документированию хозяйственных операций и ведению бухгалтерского учета активов организации
B18: 2 | C18: Диф. зач | D18: Комплексный диф. зачет | E18: 6 | F18: 6 | G18: [6] | H18: УП.02.01 Учебная практика по ведению бухгалтерского учета источников формирования активов, выполнению работ по инвентаризации активов и финансовых обязательств организации
F19: 6 | G19: [6] | H19: ПП.02.01 Производственная практика по ведению бухгалтерского учета источников формирования активов, выполнению работ по инвентаризации активов и финансовых
B34: 3 | C34: Диф. зач | D34: Комплексный диф. зачет | E34: 7 | F34: 7 | G34: [7] | H34: УП.03.01 Учебная практика по организации расчетов с бюджетом и внебюджетными фондами
F35: 7 | G35: [7] | H35: ПП.03.01 Производственная практика по организации расчетов с бюджетом и внебюджетными фондами
B50: 4 | C50: Диф. зач | D50: Комплексный диф. зачет | E50: 8 | F50: 8 | G50: [8] | H50: УП.04.01 Учебная практика по составлению и использованию бухгалтерской (финансовой) отчетности
F51: 8 | G51: [8] | H51: ПП.04.01 Производственная практика по составлению и использованию бухгалтерской (финансовой) отчетности
B66: 5 | C66: Диф. зач | D66: Комплексный диф. зачет | E66: 8 | F66: 8 | G66: [8] | H66: УП.05.01 Учебная практика по осуществлению налогового учета и налогового планирования в организации
F67: 8 | G67: [8] | H67: ПП.05.01 Производственная практика по осуществлению налогового учета и налогового планирования в организации
B82: 6 | C82: Диф. зач | D82: Комплексный диф. зачет | E82: 6 | F82: 6 | G82: [6] | H82: УП.06.01 Учебная практика по выполнению работ по одной или нескольким профессиям, должностям служащих: 23369 Кассир
F83: 6 | G83: [6] | H83: ПП.06.01 Производственная практика по выполнению работ по одной или нескольким профессиям, должностям служащих: 23369 Кассир
B98: 7
B114: 8
B130: 9
B146: 10
B162: 11
B178: 12
B194: 13
B210: 14
B226: 15
B242: 16
B258: 17
B274: 18
B290: 19
B306: 20

Sheet Start (hidden)

Sheet Лист1

Sheet Лист2
